[Event "Late-Titled-Tuesday-Blitz-March-12-2024"]
[Site "Chess.com"]
[Date "2024.03.12"]
[Round "4"]
[White "Lady_Nika"]
[Black "BardArtem"]
[Result "0-1"]
[WhiteElo "2566"]
[BlackElo "2741"]
[TimeControl "180+1"]
[EndTime "14:38:10 PDT"]
[Termination "BardArtem won by resignation"]

1. e4 {[%clk 0:03:00.9]} 1... d5 {[%clk 0:02:58.6]} 2. exd5 {[%clk 0:03:00.7]}
2... Qxd5 {[%clk 0:02:59.5]} 3. Nc3 {[%clk 0:03:01.6]} 3... Qe5+ {[%clk
0:02:59.9]} 4. Qe2 {[%clk 0:03:01.2]} 4... Qxe2+ {[%clk 0:02:58.3]} 5. Bxe2
{[%clk 0:03:01]} 5... c6 {[%clk 0:02:59.2]} 6. Nf3 {[%clk 0:03:01]} 6... Nf6
{[%clk 0:02:58.8]} 7. O-O {[%clk 0:03:00.7]} 7... Bf5 {[%clk 0:02:59]} 8. d3
{[%clk 0:02:59.9]} 8... h6 {[%clk 0:02:59.5]} 9. h3 {[%clk 0:02:58.8]} 9... e6
{[%clk 0:02:59.9]} 10. Nd4 {[%clk 0:02:58.2]} 10... Bh7 {[%clk 0:02:58.7]} 11.
a4 {[%clk 0:02:58]} 11... a5 {[%clk 0:02:57.3]} 12. Nb3 {[%clk 0:02:56.1]} 12...
Nbd7 {[%clk 0:02:56]} 13. Be3 {[%clk 0:02:55.1]} 13... Bb4 {[%clk 0:02:53.9]}
14. Na2 {[%clk 0:02:54]} 14... Be7 {[%clk 0:02:52.8]} 15. Nc3 {[%clk 0:02:54]}
15... Bb4 {[%clk 0:02:53.2]} 16. Na2 {[%clk 0:02:54]} 16... Bd6 {[%clk
0:02:53.8]} 17. Nc3 {[%clk 0:02:52.3]} 17... O-O {[%clk 0:02:51.2]} 18. Nd2
{[%clk 0:02:51.1]} 18... Bb4 {[%clk 0:02:51.2]} 19. Nc4 {[%clk 0:02:43.5]} 19...
Rfe8 {[%clk 0:02:38.5]} 20. Na2 {[%clk 0:02:39.7]} 20... Be7 {[%clk 0:02:23.8]}
21. Nc3 {[%clk 0:02:37.6]} 21... Nd5 {[%clk 0:02:20.3]} 22. Bd2 {[%clk
0:02:34.6]} 22... Bb4 {[%clk 0:02:17.2]} 23. Na2 {[%clk 0:02:26.4]} 23... Bxd2
{[%clk 0:02:08]} 24. Nxd2 {[%clk 0:02:26.2]} 24... Nc5 {[%clk 0:02:08.5]} 25.
Bf3 {[%clk 0:02:24.6]} 25... Nxa4 {[%clk 0:02:05.1]} 26. b3 {[%clk 0:02:03.2]}
26... Nac3 {[%clk 0:02:04.8]} 27. Nxc3 {[%clk 0:02:01]} 27... Nxc3 {[%clk
0:02:02.9]} 28. Nc4 {[%clk 0:02:00.9]} 28... a4 {[%clk 0:01:58.4]} 29. Nb6
{[%clk 0:01:57.9]} 29... Ra6 {[%clk 0:01:45.4]} 30. Nxa4 {[%clk 0:01:38.1]}
30... Rea8 {[%clk 0:01:44.3]} 31. Rae1 {[%clk 0:01:32]} 31... Nxa4 {[%clk
0:01:43.4]} 32. bxa4 {[%clk 0:01:31.8]} 32... Rxa4 {[%clk 0:01:44.3]} 33. Rb1
{[%clk 0:01:31.6]} 33... R8a7 {[%clk 0:01:41.4]} 34. Rb2 {[%clk 0:01:30]} 34...
Ra2 {[%clk 0:01:23.8]} 35. Rfb1 {[%clk 0:01:26.5]} 35... Rxb2 {[%clk 0:01:23.8]}
36. Rxb2 {[%clk 0:01:26.4]} 36... Kf8 {[%clk 0:01:24.7]} 37. Kf1 {[%clk
0:01:26.3]} 37... Ke7 {[%clk 0:01:23]} 38. Ke1 {[%clk 0:01:26.5]} 38... Kd6
{[%clk 0:01:22.6]} 39. Kd2 {[%clk 0:01:26.5]} 39... e5 {[%clk 0:01:22.8]} 40. g4
{[%clk 0:01:25.2]} 40... f6 {[%clk 0:01:22.8]} 41. Bg2 {[%clk 0:01:12.6]} 41...
Bg8 {[%clk 0:01:22.1]} 42. Rb4 {[%clk 0:01:06.6]} 42... b5 {[%clk 0:01:15.5]}
43. f4 {[%clk 0:01:05.1]} 43... Kc5 {[%clk 0:01:11.6]} 44. Rb2 {[%clk
0:00:20.6]} 44... exf4 {[%clk 0:01:09.7]} 45. Be4 {[%clk 0:00:20.4]} 45... Bd5
{[%clk 0:01:07.9]} 46. Bf5 {[%clk 0:00:16.9]} 46... Re7 {[%clk 0:01:04.5]} 47.
c3 {[%clk 0:00:16.4]} 47... f3 {[%clk 0:01:01.7]} 48. d4+ {[%clk 0:00:16.4]}
48... Kd6 {[%clk 0:01:01.6]} 49. Bd3 {[%clk 0:00:15.1]} 49... f2 {[%clk
0:00:59.3]} 50. Rb1 {[%clk 0:00:15]} 50... Bg2 {[%clk 0:00:58.2]} 51. Bf1 {[%clk
0:00:14.5]} 51... Re1 {[%clk 0:00:54.6]} 52. Rxe1 {[%clk 0:00:10.4]} 52...
fxe1=Q+ {[%clk 0:00:55.5]} 53. Kxe1 {[%clk 0:00:11.3]} 53... Bxf1 {[%clk
0:00:56.4]} 54. Kxf1 {[%clk 0:00:11.8]} 54... Kd5 {[%clk 0:00:57]} 55. Ke2
{[%clk 0:00:12.1]} 55... Kc4 {[%clk 0:00:57]} 56. Kd2 {[%clk 0:00:12.5]} 56...
b4 {[%clk 0:00:57.5]} 57. cxb4 {[%clk 0:00:10.4]} 57... Kxd4 {[%clk 0:00:58.4]}
58. Ke2 {[%clk 0:00:06.5]} 58... Kc4 {[%clk 0:00:58.7]} 59. Kf3 {[%clk
0:00:07.4]} 59... Kxb4 {[%clk 0:00:59.1]} 60. Kf4 {[%clk 0:00:08.3]} 60... g6
{[%clk 0:00:58.1]} 61. h4 {[%clk 0:00:07.7]} 61... c5 {[%clk 0:00:58.5]} 62. h5
{[%clk 0:00:08]} 62... gxh5 {[%clk 0:00:57.8]} 63. gxh5 {[%clk 0:00:08.2]} 63...
c4 {[%clk 0:00:57.8]} 64. Kf5 {[%clk 0:00:08.9]} 64... c3 {[%clk 0:00:58.7]} 65.
Kg6 {[%clk 0:00:08.5]} 65... c2 {[%clk 0:00:59.6]} 66. Kxh6 {[%clk 0:00:09.4]}
66... c1=Q+ {[%clk 0:01:00.5]} 67. Kg6 {[%clk 0:00:10.1]} 67... Qg5+ {[%clk
0:01:01.1]} 0-1

[Event "Late-Titled-Tuesday-Blitz-March-12-2024"]
[Site "Chess.com"]
[Date "2024.03.12"]
[Round "4"]
[White "IraZyne"]
[Black "BrandonJiang123456"]
[Result "1-0"]
[WhiteElo "2340"]
[BlackElo "2152"]
[TimeControl "180+1"]
[EndTime "14:38:11 PDT"]
[Termination "IraZyne won on time"]

1. e4 {[%clk 0:03:00.9]} 1... e5 {[%clk 0:02:58.9]} 2. Bc4 {[%clk 0:02:59.9]}
2... Nc6 {[%clk 0:02:44]} 3. Nf3 {[%clk 0:02:59]} 3... Bc5 {[%clk 0:02:43.2]} 4.
O-O {[%clk 0:02:58.9]} 4... Nf6 {[%clk 0:02:42.9]} 5. d3 {[%clk 0:02:59.2]} 5...
d6 {[%clk 0:02:42.5]} 6. c3 {[%clk 0:02:57.4]} 6... Bb6 {[%clk 0:02:41.6]} 7.
Re1 {[%clk 0:02:55.6]} 7... h6 {[%clk 0:02:41.9]} 8. h3 {[%clk 0:02:54]} 8... g5
{[%clk 0:02:41]} 9. Qb3 {[%clk 0:02:41.2]} 9... Qe7 {[%clk 0:02:39.4]} 10. Be3
{[%clk 0:02:36.4]} 10... g4 {[%clk 0:02:37.3]} 11. hxg4 {[%clk 0:02:34.8]} 11...
Bxg4 {[%clk 0:02:27.9]} 12. Nh2 {[%clk 0:02:34.3]} 12... h5 {[%clk 0:02:26.6]}
13. Nd2 {[%clk 0:02:26.5]} 13... Na5 {[%clk 0:02:11.1]} 14. Qa4+ {[%clk
0:02:25.4]} 14... Bd7 {[%clk 0:02:09.2]} 15. Qc2 {[%clk 0:02:21.8]} 15... Ng4
{[%clk 0:02:05.7]} 16. Bxb6 {[%clk 0:02:18.9]} 16... axb6 {[%clk 0:02:00]} 17.
d4 {[%clk 0:02:19]} 17... Nxc4 {[%clk 0:01:59.4]} 18. Nxc4 {[%clk 0:02:18.6]}
18... Qh4 {[%clk 0:01:59.4]} 19. Nf3 {[%clk 0:02:10.2]} 19... Qf6 {[%clk
0:01:58.4]} 20. dxe5 {[%clk 0:02:08.9]} 20... dxe5 {[%clk 0:01:52.6]} 21. Qd2
{[%clk 0:02:08.4]} 21... h4 {[%clk 0:01:48.7]} 22. Qg5 {[%clk 0:02:08.1]} 22...
Qxg5 {[%clk 0:01:40]} 23. Nxg5 {[%clk 0:02:06.9]} 23... f6 {[%clk 0:01:38]} 24.
Nh3 {[%clk 0:02:03.9]} 24... Nh6 {[%clk 0:01:37.2]} 25. a3 {[%clk 0:01:59.8]}
25... Nf7 {[%clk 0:01:12.5]} 26. Ne3 {[%clk 0:01:58.2]} 26... Bxh3 {[%clk
0:01:01.5]} 27. gxh3 {[%clk 0:01:56]} 27... Ng5 {[%clk 0:01:02.1]} 28. Nd5
{[%clk 0:01:53.7]} 28... Kf7 {[%clk 0:00:49.1]} 29. Re3 {[%clk 0:01:50.3]} 29...
Rac8 {[%clk 0:00:46.7]} 30. Rd1 {[%clk 0:01:45.8]} 30... Rhg8 {[%clk 0:00:41.3]}
31. Kh2 {[%clk 0:01:44.3]} 31... Rg7 {[%clk 0:00:38.3]} 32. c4 {[%clk
0:01:42.3]} 32... Ne6 {[%clk 0:00:21]} 33. Rf3 {[%clk 0:01:33.4]} 33... Rg6
{[%clk 0:00:20.3]} 34. Rg1 {[%clk 0:01:31.8]} 34... Rcg8 {[%clk 0:00:18.5]} 35.
Rxg6 {[%clk 0:01:31.4]} 35... Rxg6 {[%clk 0:00:18.9]} 36. b4 {[%clk 0:01:26.7]}
36... c6 {[%clk 0:00:18.8]} 37. Nxb6 {[%clk 0:01:26]} 37... Nf4 {[%clk
0:00:19.3]} 38. c5 {[%clk 0:01:22]} 38... Rg8 {[%clk 0:00:18.6]} 39. Nc4 {[%clk
0:01:20.9]} 39... Rd8 {[%clk 0:00:18.7]} 40. Nd6+ {[%clk 0:01:21]} 40... Ke6
{[%clk 0:00:19.1]} 41. Rc3 {[%clk 0:01:19.7]} 41... Rg8 {[%clk 0:00:18]} 42. Rc2
{[%clk 0:01:18]} 42... Rg2+ {[%clk 0:00:18.2]} 43. Kh1 {[%clk 0:01:18.2]} 43...
Rg8 {[%clk 0:00:18.1]} 44. Kh2 {[%clk 0:01:18.4]} 44... Rg2+ {[%clk 0:00:17.8]}
45. Kh1 {[%clk 0:01:18.6]} 45... Rg7 {[%clk 0:00:18]} 46. Nc4 {[%clk 0:01:17.1]}
46... Nxh3 {[%clk 0:00:17]} 47. Rd2 {[%clk 0:01:16.7]} 47... Nf4 {[%clk
0:00:16.5]} 48. Rd6+ {[%clk 0:01:16.2]} 48... Ke7 {[%clk 0:00:16.9]} 49. Nb6
{[%clk 0:01:14.5]} 49... Ke8 {[%clk 0:00:12.5]} 50. Rxf6 {[%clk 0:01:13.3]}
50... h3 {[%clk 0:00:12.9]} 51. Rf5 {[%clk 0:01:11.4]} 51... Rg2 {[%clk
0:00:09.1]} 52. Rxe5+ {[%clk 0:01:09.4]} 52... Kd8 {[%clk 0:00:09.6]} 53. Rf5
{[%clk 0:01:07.4]} 53... Nd3 {[%clk 0:00:10]} 54. Nc4 {[%clk 0:01:02.7]} 54...
Nxf2+ {[%clk 0:00:09.5]} 55. Rxf2 {[%clk 0:01:02.8]} 55... Rxf2 {[%clk
0:00:09.9]} 56. Nd6 {[%clk 0:01:02.6]} 56... Ra2 {[%clk 0:00:09]} 57. Nxb7+
{[%clk 0:01:01.8]} 57... Kc7 {[%clk 0:00:09.6]} 58. Nd6 {[%clk 0:01:01.4]} 58...
Rxa3 {[%clk 0:00:09.5]} 59. Kh2 {[%clk 0:00:59.3]} 59... Re3 {[%clk 0:00:07.7]}
60. Nf5 {[%clk 0:00:54.4]} 60... Rxe4 {[%clk 0:00:07.2]} 61. Kxh3 {[%clk
0:00:54.7]} 61... Rxb4 {[%clk 0:00:06.7]} 62. Ng3 {[%clk 0:00:51.5]} 62... Kd7
{[%clk 0:00:02.4]} 63. Kg2 {[%clk 0:00:50.7]} 63... Ke6 {[%clk 0:00:02.1]} 64.
Kf3 {[%clk 0:00:51]} 1-0

[Event "Late-Titled-Tuesday-Blitz-March-12-2024"]
[Site "Chess.com"]
[Date "2024.03.12"]
[Round "4"]
[White "PoXerStar"]
[Black "RebelJohnny"]
[Result "0-1"]
[WhiteElo "2370"]
[BlackElo "2549"]
[TimeControl "180+1"]
[EndTime "14:38:12 PDT"]
[Termination "RebelJohnny won by checkmate"]

1. e4 {[%clk 0:03:00.9]} 1... d6 {[%clk 0:02:59.9]} 2. d4 {[%clk 0:02:59.7]}
2... Nf6 {[%clk 0:03:00.1]} 3. Nc3 {[%clk 0:02:59.7]} 3... c6 {[%clk 0:03:00.3]}
4. Nf3 {[%clk 0:02:57.4]} 4... Bg4 {[%clk 0:03:00.2]} 5. Be2 {[%clk 0:02:55.1]}
5... e6 {[%clk 0:02:59.8]} 6. h3 {[%clk 0:02:54.8]} 6... Bh5 {[%clk 0:02:59.7]}
7. O-O {[%clk 0:02:53.9]} 7... Be7 {[%clk 0:02:54.9]} 8. Be3 {[%clk 0:02:50.5]}
8... O-O {[%clk 0:02:52.6]} 9. Re1 {[%clk 0:02:32.6]} 9... d5 {[%clk 0:02:51.7]}
10. e5 {[%clk 0:02:25]} 10... Nfd7 {[%clk 0:02:51.5]} 11. Nb1 {[%clk 0:02:09.9]}
11... c5 {[%clk 0:02:50.8]} 12. c3 {[%clk 0:02:10]} 12... Nc6 {[%clk 0:02:51.4]}
13. Nbd2 {[%clk 0:02:09]} 13... cxd4 {[%clk 0:02:50]} 14. cxd4 {[%clk
0:02:08.2]} 14... Rc8 {[%clk 0:02:48.6]} 15. a3 {[%clk 0:02:05.1]} 15... Qb6
{[%clk 0:02:33.3]} 16. b4 {[%clk 0:02:03.6]} 16... a6 {[%clk 0:02:26.5]} 17. Nb3
{[%clk 0:02:02.1]} 17... Bxf3 {[%clk 0:02:22.7]} 18. Bxf3 {[%clk 0:02:00.4]}
18... a5 {[%clk 0:02:23.1]} 19. Nc5 {[%clk 0:01:55.8]} 19... Rfd8 {[%clk
0:02:21.8]} 20. b5 {[%clk 0:01:35.4]} 20... Nxc5 {[%clk 0:02:09.7]} 21. bxc6
{[%clk 0:01:25]} 21... Nb3 {[%clk 0:02:09.6]} 22. Rb1 {[%clk 0:01:24.1]} 22...
a4 {[%clk 0:02:09.3]} 23. cxb7 {[%clk 0:01:23.5]} 23... Qxb7 {[%clk 0:02:10.2]}
24. Be2 {[%clk 0:01:21.7]} 24... Bxa3 {[%clk 0:02:05]} 25. Bd3 {[%clk
0:01:18.6]} 25... Bf8 {[%clk 0:01:59.8]} 26. Bg5 {[%clk 0:01:14.4]} 26... Be7
{[%clk 0:01:50.6]} 27. Bf6 {[%clk 0:01:05.5]} 27... gxf6 {[%clk 0:01:31.1]} 28.
Qh5 {[%clk 0:00:53.8]} 28... f5 {[%clk 0:01:30.4]} 29. Re3 {[%clk 0:00:53.4]}
29... Kf8 {[%clk 0:01:26.7]} 30. Rg3 {[%clk 0:00:50.9]} 30... Ke8 {[%clk
0:01:25.6]} 31. Bxf5 {[%clk 0:00:42]} 31... Qb6 {[%clk 0:00:56.4]} 32. Rg7
{[%clk 0:00:35.4]} 32... Kd7 {[%clk 0:00:47.7]} 33. Qxf7 {[%clk 0:00:33.7]}
33... Re8 {[%clk 0:00:48.3]} 34. Rxh7 {[%clk 0:00:26.8]} 34... exf5 {[%clk
0:00:30.4]} 35. Qxd5+ {[%clk 0:00:25.9]} 35... Kc7 {[%clk 0:00:30.9]} 36. Qc4+
{[%clk 0:00:18]} 36... Qc6 {[%clk 0:00:29.9]} 37. Qd3 {[%clk 0:00:11.5]} 37...
Kb8 {[%clk 0:00:14.7]} 38. d5 {[%clk 0:00:11.5]} 38... Qc4 {[%clk 0:00:15.3]}
39. Qxf5 {[%clk 0:00:08.5]} 39... Qxd5 {[%clk 0:00:14.4]} 40. Qf4 {[%clk
0:00:07.1]} 40... Rc4 {[%clk 0:00:10.4]} 41. Qg3 {[%clk 0:00:05.9]} 41... Rg8
{[%clk 0:00:09.6]} 42. Qh2 {[%clk 0:00:04.1]} 42... Qd3 {[%clk 0:00:04.7]} 43.
Rxe7 {[%clk 0:00:01.3]} 43... Qxb1# {[%clk 0:00:04.4]} 0-1

[Event "Late-Titled-Tuesday-Blitz-March-12-2024"]
[Site "Chess.com"]
[Date "2024.03.12"]
[Round "4"]
[White "Zhigalko_Sergei"]
[Black "GOGIEFF"]
[Result "0-1"]
[WhiteElo "2856"]
[BlackElo "3025"]
[TimeControl "180+1"]
[EndTime "14:38:13 PDT"]
[Termination "GOGIEFF won on time"]

1. e4 {[%clk 0:03:00.7]} 1... e6 {[%clk 0:03:00.3]} 2. d4 {[%clk 0:03:00.8]}
2... d5 {[%clk 0:03:00.6]} 3. e5 {[%clk 0:03:01.4]} 3... c5 {[%clk 0:03:00.6]}
4. c3 {[%clk 0:03:02]} 4... Nc6 {[%clk 0:03:01]} 5. Nf3 {[%clk 0:03:02.6]} 5...
Qb6 {[%clk 0:03:01.6]} 6. Bd3 {[%clk 0:02:59.8]} 6... cxd4 {[%clk 0:03:01.3]} 7.
O-O {[%clk 0:03:00.4]} 7... Bd7 {[%clk 0:03:01.7]} 8. Re1 {[%clk 0:03:00.5]}
8... Nh6 {[%clk 0:03:01.2]} 9. c4 {[%clk 0:02:39.6]} 9... dxc4 {[%clk
0:02:57.6]} 10. Bxc4 {[%clk 0:02:39.1]} 10... Nf5 {[%clk 0:02:57.4]} 11. a3
{[%clk 0:02:33.2]} 11... Be7 {[%clk 0:02:43.8]} 12. Nbd2 {[%clk 0:02:30.4]}
12... O-O {[%clk 0:02:34.4]} 13. Bd3 {[%clk 0:02:30.4]} 13... Rfd8 {[%clk
0:02:25]} 14. b4 {[%clk 0:02:10.1]} 14... Be8 {[%clk 0:02:19.7]} 15. Nc4 {[%clk
0:02:06.1]} 15... Qc7 {[%clk 0:02:18.9]} 16. Bf4 {[%clk 0:02:06.7]} 16... b5
{[%clk 0:02:14.7]} 17. Ncd2 {[%clk 0:02:03.3]} 17... a5 {[%clk 0:02:14.5]} 18.
g4 {[%clk 0:02:02.3]} 18... Ne3 {[%clk 0:02:02]} 19. fxe3 {[%clk 0:01:42.4]}
19... dxe3 {[%clk 0:02:02.9]} 20. Rxe3 {[%clk 0:01:42.8]} 20... axb4 {[%clk
0:02:03]} 21. Qc2 {[%clk 0:01:42]} 21... h6 {[%clk 0:01:50.2]} 22. g5 {[%clk
0:01:30.4]} 22... hxg5 {[%clk 0:01:27.4]} 23. Nxg5 {[%clk 0:01:22.6]} 23... Rxa3
{[%clk 0:01:27.2]} 24. Rf1 {[%clk 0:00:39]} 24... Rc3 {[%clk 0:00:58.3]} 25.
Bh7+ {[%clk 0:00:32.3]} 25... Kh8 {[%clk 0:00:54]} 26. Rxc3 {[%clk 0:00:33.1]}
26... bxc3 {[%clk 0:00:54.2]} 27. Bg8 {[%clk 0:00:20.5]} 27... g6 {[%clk
0:00:51.6]} 28. Qxc3 {[%clk 0:00:11]} 28... Kxg8 {[%clk 0:00:41.2]} 29. Qh3
{[%clk 0:00:11.5]} 29... Bxg5 {[%clk 0:00:40.8]} 30. Bxg5 {[%clk 0:00:12.4]}
30... Qxe5 {[%clk 0:00:38]} 31. Bf6 {[%clk 0:00:06.9]} 31... Qc5+ {[%clk
0:00:34.2]} 32. Rf2 {[%clk 0:00:05.3]} 32... Qh5 {[%clk 0:00:34]} 33. Qxh5
{[%clk 0:00:04.1]} 33... gxh5 {[%clk 0:00:34.9]} 34. Bxd8 {[%clk 0:00:02.9]}
34... Nxd8 {[%clk 0:00:35.8]} 35. Ne4 {[%clk 0:00:02.2]} 35... Bc6 {[%clk
0:00:36]} 36. Nd6 {[%clk 0:00:01.9]} 36... Nb7 {[%clk 0:00:25.5]} 37. Nxb7
{[%clk 0:00:01.6]} 37... Bxb7 {[%clk 0:00:25.4]} 38. Rc2 {[%clk 0:00:02.1]}
38... Bd5 {[%clk 0:00:25.2]} 39. Rc5 {[%clk 0:00:02.5]} 39... b4 {[%clk
0:00:25.1]} 40. Rb5 {[%clk 0:00:02.6]} 40... b3 {[%clk 0:00:25.7]} 41. Kf2
{[%clk 0:00:03.4]} 41... Kg7 {[%clk 0:00:26.1]} 42. Kg3 {[%clk 0:00:04]} 42...
Kg6 {[%clk 0:00:25.9]} 43. Kf4 {[%clk 0:00:04.9]} 43... Kf6 {[%clk 0:00:25.6]}
44. h4 {[%clk 0:00:05.1]} 44... e5+ {[%clk 0:00:24.6]} 45. Ke3 {[%clk
0:00:03.1]} 45... Ke6 {[%clk 0:00:22.5]} 46. Rb6+ {[%clk 0:00:02.6]} 46... Kf5
{[%clk 0:00:22.9]} 47. Rb5 {[%clk 0:00:03.1]} 47... Be6 {[%clk 0:00:23.2]} 48.
Kf3 {[%clk 0:00:03.2]} 48... f6 {[%clk 0:00:23.4]} 49. Rc5 {[%clk 0:00:01.8]}
49... Bf7 {[%clk 0:00:19.1]} 50. Rb5 {[%clk 0:00:01.6]} 50... Bc4 {[%clk
0:00:19.4]} 51. Rb6 {[%clk 0:00:01.2]} 51... Bd5+ {[%clk 0:00:19.2]} 0-1

[Event "Late-Titled-Tuesday-Blitz-March-12-2024"]
[Site "Chess.com"]
[Date "2024.03.12"]
[Round "4"]
[White "Zq1"]
[Black "alexrustemov"]
[Result "1/2-1/2"]
[WhiteElo "2615"]
[BlackElo "2850"]
[TimeControl "180+1"]
[EndTime "14:38:13 PDT"]
[Termination "Game drawn - insufficient material"]

1. d4 {[%clk 0:02:56.3]} 1... g6 {[%clk 0:02:58.2]} 2. c4 {[%clk 0:02:55.3]}
2... Bg7 {[%clk 0:02:58.3]} 3. e4 {[%clk 0:02:55.6]} 3... d6 {[%clk 0:02:57]} 4.
Nc3 {[%clk 0:02:55.6]} 4... Nc6 {[%clk 0:02:56.9]} 5. Nge2 {[%clk 0:02:54]} 5...
e5 {[%clk 0:02:55.6]} 6. Be3 {[%clk 0:02:53.6]} 6... f5 {[%clk 0:02:56.1]} 7. d5
{[%clk 0:02:52.2]} 7... Nce7 {[%clk 0:02:54.6]} 8. f3 {[%clk 0:02:52.3]} 8...
Nf6 {[%clk 0:02:54.3]} 9. Qd2 {[%clk 0:02:48.9]} 9... O-O {[%clk 0:02:54.2]} 10.
h3 {[%clk 0:02:48.2]} 10... f4 {[%clk 0:02:53.1]} 11. Bf2 {[%clk 0:02:44.5]}
11... b6 {[%clk 0:02:52.8]} 12. O-O-O {[%clk 0:02:42.7]} 12... a5 {[%clk
0:02:52]} 13. Kb1 {[%clk 0:02:42.3]} 13... Bd7 {[%clk 0:02:51.2]} 14. Nc1 {[%clk
0:02:36.9]} 14... g5 {[%clk 0:02:50.7]} 15. Nd3 {[%clk 0:02:36]} 15... h5 {[%clk
0:02:47.5]} 16. Rc1 {[%clk 0:02:34.3]} 16... Ng6 {[%clk 0:02:46.9]} 17. Be2
{[%clk 0:02:27.7]} 17... Rf7 {[%clk 0:02:46.6]} 18. b3 {[%clk 0:02:26.4]} 18...
Bf8 {[%clk 0:02:45.8]} 19. a3 {[%clk 0:02:24.9]} 19... Rh7 {[%clk 0:02:45]} 20.
Kb2 {[%clk 0:02:23.5]} 20... g4 {[%clk 0:02:44.5]} 21. hxg4 {[%clk 0:02:21.3]}
21... hxg4 {[%clk 0:02:45.4]} 22. Rxh7 {[%clk 0:02:19.4]} 22... Kxh7 {[%clk
0:02:45]} 23. b4 {[%clk 0:02:14.8]} 23... g3 {[%clk 0:02:38.4]} 24. Bg1 {[%clk
0:02:12.8]} 24... Nh4 {[%clk 0:02:37]} 25. Bf1 {[%clk 0:02:12.2]} 25... Be7
{[%clk 0:02:17.7]} 26. c5 {[%clk 0:02:09.5]} 26... axb4 {[%clk 0:02:16.8]} 27.
axb4 {[%clk 0:02:08.9]} 27... bxc5 {[%clk 0:02:16.5]} 28. bxc5 {[%clk
0:02:08.9]} 28... Qb8+ {[%clk 0:01:55.1]} 29. Kc2 {[%clk 0:02:08.5]} 29... Ba4+
{[%clk 0:01:47.5]} 30. Nxa4 {[%clk 0:02:06.7]} 30... Rxa4 {[%clk 0:01:48.1]} 31.
Nb2 {[%clk 0:01:44.2]} 31... Ra2 {[%clk 0:01:38.6]} 32. Rb1 {[%clk 0:01:43.5]}
32... dxc5 {[%clk 0:01:36.4]} 33. Bc4 {[%clk 0:01:39.3]} 33... Ra3 {[%clk
0:01:26.8]} 34. Nd3 {[%clk 0:01:36.3]} 34... Qa7 {[%clk 0:01:23.2]} 35. Nxe5
{[%clk 0:01:27.8]} 35... Bd6 {[%clk 0:00:53.5]} 36. Nc6 {[%clk 0:01:25.3]} 36...
Qa4+ {[%clk 0:00:46.6]} 37. Bb3 {[%clk 0:01:24.5]} 37... Rxb3 {[%clk 0:00:46.8]}
38. Rxb3 {[%clk 0:01:21.8]} 38... c4 {[%clk 0:00:46.8]} 39. Qc3 {[%clk
0:01:11.1]} 39... Qxb3+ {[%clk 0:00:43.1]} 40. Qxb3 {[%clk 0:01:10.8]} 40...
cxb3+ {[%clk 0:00:43.6]} 41. Kxb3 {[%clk 0:01:11]} 41... Nxg2 {[%clk 0:00:34.3]}
42. e5 {[%clk 0:01:10.7]} 42... Nxd5 {[%clk 0:00:34]} 43. exd6 {[%clk
0:01:09.7]} 43... cxd6 {[%clk 0:00:34.7]} 44. Kc4 {[%clk 0:01:05.3]} 44... Nf6
{[%clk 0:00:27.8]} 45. Kd3 {[%clk 0:00:59.1]} 45... Nh4 {[%clk 0:00:25.6]} 46.
Ke2 {[%clk 0:00:57.4]} 46... Kg6 {[%clk 0:00:24.7]} 47. Nd4 {[%clk 0:00:49.8]}
47... Nh7 {[%clk 0:00:24]} 48. Nc2 {[%clk 0:00:40.5]} 48... Ng5 {[%clk
0:00:23.1]} 49. Ne1 {[%clk 0:00:40.4]} 49... Kf5 {[%clk 0:00:22.9]} 50. Bd4
{[%clk 0:00:39.5]} 50... Ke6 {[%clk 0:00:22.3]} 51. Bc3 {[%clk 0:00:36]} 51...
Kd5 {[%clk 0:00:22.6]} 52. Bf6 {[%clk 0:00:35.7]} 52... Nhxf3 {[%clk 0:00:13]}
53. Nxf3 {[%clk 0:00:34.6]} 53... Nxf3 {[%clk 0:00:13.3]} 54. Kxf3 {[%clk
0:00:34.7]} 54... Ke6 {[%clk 0:00:13.9]} 55. Bg5 {[%clk 0:00:32]} 55... Kf5
{[%clk 0:00:13.5]} 56. Bxf4 {[%clk 0:00:31.9]} 56... g2 {[%clk 0:00:09.4]} 57.
Be3 {[%clk 0:00:31.3]} 57... d5 {[%clk 0:00:05.6]} 58. Kxg2 {[%clk 0:00:30.8]}
58... Ke4 {[%clk 0:00:05.8]} 59. Ba7 {[%clk 0:00:29.7]} 59... d4 {[%clk
0:00:05.7]} 60. Bxd4 {[%clk 0:00:29.6]} 1/2-1/2